Workbook

Sheet Sheet1
A1: 附件2
A2: 镇宁自治县2023年面向全县公开考调机关事业单位人员总成绩
A3: 序号 | B3: 姓名 | C3: 准考证号 | D3: 报考单位 | E3: 笔试成绩 | G3: 面试成绩 | I3: 总成绩 | J3: 是否进入考察 | K3: 备注
E4: 成绩 | F4: 折算后成绩 | G4: 成绩 | H4: 折算后成绩
A5: 1 | B5: 鲁后媚 | C5: 2023110101 | D5: 镇宁自治县纪委县监委 | E5: 107.00 | F5: =E5/1.5*0.4 -> 28.53 | G5: 75.60 | H5: =G5*0.6 -> 45.36 | I5: =F5+H5 -> 73.89 | J5: 否
A6: 2 | B6: 马 祥 | C6: 2023110103 | D6: 镇宁自治县纪委县监委 | E6: 97.50 | F6: 26.00 | G6: 80.00 | H6: 48.00 | I6: 74.00 | J6: 是
A7: 3 | B7: 黄礼义 | C7: 2023110102 | D7: 镇宁自治县纪委县监委 | E7: 87.00 | F7: 23.20 | G7: 84.00 | H7: 50.40 | I7: 73.60 | J7: 是
A8: 4 | B8: 杨 芳 | C8: 2023110104 | D8: 镇宁自治县财政局 | E8: 92.00 | F8: 24.53 | G8: 80.00 | H8: 48.00 | I8: 72.53 | J8: 是
A9: 5 | B9: 韦 艳 | C9: 2023110105 | D9: 镇宁自治县财政局 | E9: 92.00 | F9: 24.53 | G9: 73.80 | H9: 44.28 | I9: 68.81 | J9: 否
A10: 6 | B10: 施建州 | C10: 2023110106 | D10: 镇宁自治县财政局 | E10: 76.00 | F10: 20.27 | G10: 79.20 | H10: 47.52 | I10: 67.79 | J10: 否
A11: 7 | B11: 汪朝欢 | C11: 2023110107 | D11: 镇宁自治县司法局 | E11: 88.00 | F11: 23.47 | G11: 78.20 | H11: 46.92 | I11: 70.39 | J11: 否
A12: 8 | B12: 伍明朗 | C12: 2023110109 | D12: 镇宁自治县医疗保障局 | E12: 102.00 | F12: 27.20 | G12: 81.20 | H12: 48.72 | I12: 75.92 | J12: 是
A13: 9 | B13: 陈宏倩 | C13: 2023110116 | D13: 镇宁自治县医疗保障局 | E13: 99.00 | F13: 26.40 | G13: 80.00 | H13: 48.00 | I13: 74.40 | J13: 否
A14: 10 | B14: 吴德佳 | C14: 2023110111 | D14: 镇宁自治县医疗保障局 | E14: 96.50 | F14: 25.73 | G14: 75.20 | H14: 45.12 | I14: 70.85 | J14: 否
A15: 11 | B15: 汪 洋 | C15: 2023110114 | D15: 镇宁自治县医疗保障局 | E15: 96.50 | F15: 25.73 | G15: 76.00 | H15: 45.60 | I15: 71.33 | J15: 否
A16: 12 | B16: 梁 军 | C16: 2023110121 | D16: 镇宁自治县委党校 | E16: 101.50 | F16: 27.07 | G16: 80.00 | H16: 48.00 | I16: 75.07 | J16: 是
A17: 13 | B17: 蔡齐秀 | C17: 2023110122 | D17: 镇宁自治县委党校 | E17: 98.00 | F17: 26.13 | G17: 78.40 | H17: 47.04 | I17: 73.17 | J17: 否
A18: 14 | B18: 冯丹萍 | C18: 2023110118 | D18: 镇宁自治县委党校 | E18: 96.50 | F18: 25.73 | G18: 77.60 | H18: 46.56 | I18: 72.29 | J18: 否
A19: 15 | B19: 张 文 | C19: 2023110120 | D19: 镇宁自治县委党校 | E19: 87.00 | F19: 23.20 | G19: 76.40 | H19: 45.84 | I19: 69.04 | J19: 否
A20: 16 | B20: 王生江 | C20: 2023110123 | D20: 镇宁自治县委党校 | E20: 86.00 | F20: 22.93 | G20: 缺考 | J20: 否
A21: 17 | B21: 汤昌源 | C21: 2023110124 | D21: 镇宁自治县老年大学 | E21: 105.00 | F21: 28.00 | G21: 78.80 | H21: =G21*0.6 -> 47.28 | I21: =F21+H21 -> 75.28 | J21: 是
A22: 18 | B22: 卢 霖 | C22: 2023110125 | D22: 镇宁自治县国库收付中心 | E22: 100.00 | F22: 26.67 | G22: 81.20 | H22: 48.72 | I22: 75.39 | J22: 是
A23: 19 | B23: 吴乾敏 | C23: 2023110127 | D23: 镇宁自治县国库收付中心 | E23: 91.00 | F23: 24.27 | G23: 80.40 | H23: 48.24 | I23: 72.51 | J23: 是
A24: 20 | B24: 卢 刚 | C24: 2023110128 | D24: 镇宁自治县国库收付中心 | E24: 85.00 | F24: 22.67 | G24: 81.00 | H24: 48.60 | I24: 71.27 | J24: 否
A25: 21 | B25: 石 磊 | C25: 2023110208 | D25: 镇宁自治县人大代表联络服务和基层立法联系中心 | E25: 79.50 | F25: 21.20 | G25: 78.60 | H25: 47.16 | I25: 68.36 | J25: 是
A26: 22 | B26: 王 静 | C26: 2023110205 | D26: 镇宁自治县人大代表联络服务和基层立法联系中心 | E26: 78.00 | F26: 20.80 | G26: 73.60 | H26: 44.16 | I26: 64.96 | J26: 否
A27: 23 | B27: 王天禄 | C27: 2023110212 | D27: 镇宁自治县公务员综合服务中心 | E27: 108.50 | F27: 28.93 | G27: 72.60 | H27: 43.56 | I27: 72.49 | J27: 是
A28: 24 | B28: 罗正凯 | C28: 2023110327 | D28: 镇宁自治县公务员综合服务中心 | E28: 102.00 | F28: 27.20 | G28: 74.82 | H28: 44.89 | I28: 72.09 | J28: 是
A29: 25 | B29: 李鹏飞 | C29: 2023110318 | D29: 镇宁自治县公务员综合服务中心 | E29: 95.50 | F29: 25.47 | G29: 74.64 | H29: 44.78 | I29: 70.25 | J29: 否
A30: 26 | B30: 罗兴贵 | C30: 2023110202 | D30: 镇宁自治县公务员综合服务中心 | E30: 89.00 | F30: 23.73 | G30: 73.40 | H30: 44.04 | I30: 67.77 | J30: 否
A31: 27 | B31: 娄秀剑 | C31: 2023110220 | D31: 镇宁自治县公务员综合服务中心 | E31: 86.00 | F31: 22.93 | G31: 缺考 | J31: 否
A32: 28 | B32: 卢 迷 | C32: 2023110216 | D32: 镇宁自治县公务员综合服务中心 | E32: 84.00 | F32: 22.40 | G32: 75.88 | H32: =G32*0.6 -> 45.53 | I32: =F32+H32 -> 67.93 | J32: 否
A33: 29 | B33: 王贵林 | C33: 2023110217 | D33: 镇宁自治县党员教育中心 | E33: 110.00 | F33: 29.33 | G33: 73.40 | H33: =G33*0.6 -> 44.04 | I33: =F33+H33 -> 73.37 | J33: 是
A34: 30 | B34: 杨 串 | C34: 2023110325 | D34: 镇宁自治县党员教育中心 | E34: 99.00 | F34: 26.40 | G34: 76.22 | H34: =G34*0.6 -> 45.73 | I34: =F34+H34 -> 72.13 | J34: 否
A35: 31 | B35: 韦双雄 | C35: 2023110312 | D35: 镇宁自治县党员教育中心 | E35: 95.00 | F35: 25.33 | G35: 缺考 | J35: 否
A36: 32 | B36: 赵大启 | C36: 2023110313 | D36: 镇宁自治县创建工作办公室 | E36: 99.50 | F36: 26.53 | G36: 70.60 | H36: =G36*0.6 -> 42.36 | I36: =F36+H36 -> 68.89 | J36: 否
A37: 33 | B37: 陈 江 | C37: 2023110323 | D37: 镇宁自治县创建工作办公室 | E37: 97.50 | F37: 26.00 | G37: 80.04 | H37: =G37*0.6 -> 48.02 | I37: =F37+H37 -> 74.02 | J37: 是
A38: 34 | B38: 王 军 | C38: 2023110130 | D38: 镇宁自治县创建工作办公室 | E38: 94.00 | F38: 25.07 | G38: 75.00 | H38: =G38*0.6 -> 45.00 | I38: =F38+H38 -> 70.07 | J38: 否
A39: 35 | B39: 龙再花 | C39: 2023110219 | D39: 镇宁自治县民族宗教事务服务中心 | E39: 108.00 | F39: 28.80 | G39: 缺考 | J39: 否
A40: 36 | B40: 伍明莲 | C40: 2023110326 | D40: 镇宁自治县民族宗教事务服务中心 | E40: 98.50 | F40: 26.27 | G40: 74.20 | H40: =G40*0.6 -> 44.52 | I40: =F40+H40 -> 70.79 | J40: 否
A41: 37 | B41: 王 超 | C41: 2023110314 | D41: 镇宁自治县民族宗教事务服务中心 | E41: 98.00 | F41: 26.13 | G41: 75.00 | H41: =G41*0.6 -> 45.00 | I41: =F41+H41 -> 71.13 | J41: 是
A42: 38 | B42: 闵加海 | C42: 2023110129 | D42: 镇宁自治县人才交流中心 | E42: 96.50 | F42: 25.73 | G42: 74.62 | H42: =G42*0.6 -> 44.77 | I42: =F42+H42 -> 70.51 | J42: 是
A43: 39 | B43: 韦 婷 | C43: 2023110223 | D43: 镇宁自治县人才交流中心 | E43: 91.50 | F43: 24.40 | G43: 76.58 | H43: =G43*0.6 -> 45.95 | I43: =F43+H43 -> 70.35 | J43: 否
A44: 40 | B44: 何 坤 | C44: 2023110231 | D44: 镇宁自治县人才交流中心 | E44: 91.50 | F44: 24.40 | G44: 缺考 | J44: 否
A45: 41 | B45: 代培猛 | C45: 2023110307 | D45: 镇宁自治县水利工程建设管理站 | E45: 98.00 | F45: 26.13 | G45: 73.30 | H45: =G45*0.6 -> 43.98 | I45: =F45+H45 -> 70.11 | J45: 否
A46: 42 | B46: 韦臣超 | C46: 2023110221 | D46: 镇宁自治县水利工程建设管理站 | E46: 96.00 | F46: 25.60 | G46: 74.32 | H46: 44.59 | I46: 70.19 | J46: 是
A47: 43 | B47: 王 芹 | C47: 2023110301 | D47: 镇宁自治县水利工程建设管理站 | E47: 87.50 | F47: 23.33 | G47: 73.70 | H47: 44.22 | I47: 67.55 | J47: 否
A48: 44 | B48: 汪 于 | C48: 2023110322 | D48: 镇宁自治县供排水管理服务中心 | E48: 95.00 | F48: 25.33 | G48: 71.74 | H48: 43.04 | I48: 68.38 | J48: 是
A49: 45 | B49: 莫兰骏 | C49: 2023110309 | D49: 镇宁自治县供排水管理服务中心 | E49: 91.50 | F49: 24.40 | G49: 73.26 | H49: 43.96 | I49: 68.36 | J49: 否
A50: 46 | B50: 王永芳 | C50: 2023110316 | D50: 镇宁自治县供排水管理服务中心 | E50: 88.00 | F50: 23.47 | G50: 74.60 | H50: 44.76 | I50: 68.23 | J50: 否
A51: 47 | B51: 邓必鸿 | C51: 2023110215 | D51: 镇宁自治县蜂糖李产业发展中心 | E51: 97.00 | F51: 25.87 | G51: 81.00 | H51: 48.60 | I51: 74.47 | J51: 是
A52: 48 | B52: 韦江山 | C52: 2023110213 | D52: 镇宁自治县蜂糖李产业发展中心 | E52: 86.00 | F52: 22.93 | G52: 78.40 | H52: 47.04 | I52: 69.97 | J52: 否
A53: 49 | B53: 陈 杏 | C53: 2023110201 | D53: 镇宁自治县蜂糖李产业发展中心 | E53: 80.50 | F53: 21.47 | G53: 78.20 | H53: 46.92 | I53: 68.39 | J53: 否
